bitfinex/quotes_ETHUSD_20241006
["timestamp","ask_amount","ask_price","bid_price","bid_amount"]
[1728254219998,0.08902004,2429.6,2429.4,0.815]
[1728254220272,0.08894047,2429.5,2429.4,0.815]
[1728254220476,0.8059,2429.8,2429.4,0.815]
[1728254220630,0.08883584,2429.5,2429.4,0.815]
[1728254220987,0.8059,2429.8,2429.4,0.815]
[1728254221133,0.08883584,2429.5,2429.4,0.815]
[1728254221330,0.8059,2429.8,2429.4,0.815]
[1728254221576,0.08883584,2429.5,2429.4,0.815]
[1728254221739,0.8059,2429.8,2429.4,0.815]
[1728254222379,0.08907159,2429.7,2429.4,0.815]
[1728254222745,4.09835,2429.8,2429.4,0.815]
[1728254222948,0.08899203,2429.6,2429.4,0.815]
[1728254223148,4.09835,2429.8,2429.4,0.815]
[1728254223783,0.08917375,2429.7,2429.4,0.815]
[1728254224150,4.09835,2429.8,2429.4,0.815]
[1728254224346,0.08906865,2429.6,2429.4,0.815]
[1728254224590,4.09835,2429.8,2429.4,0.815]
[1728254225092,0.08919928,2429.7,2429.4,0.815]
[1728254225389,3.29245,2429.8,2429.4,0.815]
[1728254225584,0.08909419,2429.6,2429.4,0.815]
[1728254225789,3.29233,2429.9,2429.4,0.815]
[1728254225962,0.08898909,2429.5,2429.4,0.815]
[1728254226312,0.08898909,2429.5,2429.4,1.71372774]
[1728254226448,3.29233,2429.9,2429.4,1.71372774]
[1728254226653,0.08888692,2429.5,2429.4,0.815]
[1728254226846,3.29233,2429.9,2429.4,0.815]
[1728254227051,0.08891247,2429.5,2429.4,0.815]
[1728254227307,3.29233,2429.9,2429.4,0.815]
[1728254227485,0.08893801,2429.5,2429.4,0.815]
[1728254227651,3.29233,2429.9,2429.4,1.71372874]
[1728254227853,0.08896355,2429.5,2429.4,0.815]
[1728254228058,0.7626,2430.0,2429.4,5.77654449]
[1728254228381,4.0548,2430.0,2429.5,3.29283]
[1728254229356,4.0548,2430.0,2429.4,2.48355449]
[1728254229697,3.29232,2429.9,2429.4,2.48355449]
[1728254229857,6.58473,2429.9,2429.4,3.39051094]
[1728254230075,6.58473,2429.9,2429.4,2.48355449]
[1728254230324,12.6058641,2430.5,2429.4,2.48355449]
[1728254230325,3.29213,2430.1,2429.7,0.8333]
[1728254231498,3.0,2430.2,2429.7,0.8333]
[1728254231707,0.7762,2430.4,2429.7,0.8333]
[1728254231708,0.7762,2430.4,2429.9,0.7872]
[1728254231910,3.29156,2430.5,2429.9,4.07949]
[1728254232216,3.29129,2430.7,2430.2,1.58623742]
[1728254232767,6.58265,2430.7,2430.2,1.58623742]
[1728254232973,0.52587071,2431.0,2430.4,1.58623742]
[1728254232974,3.29108,2430.9,2430.4,1.58623742]
[1728254233169,3.29108,2430.9,2430.4,1.66851948]
[1728254233983,3.29108,2430.9,2430.4,4.96009948]
[1728254234184,3.29108,2430.9,2430.4,4.87781742]
[1728254234597,3.29108,2430.9,2430.4,1.58623742]
[1728254234800,3.29109,2430.8,2430.3,0.805]
[1728254234997,3.29109,2430.8,2430.3,1.42995662]
[1728254236401,3.29124,2430.7,2430.3,0.805]
[1728254236622,0.8321,2430.6,2430.1,0.7666]
[1728254237118,3.29167,2430.4,2430.1,0.7666]
[1728254238287,0.8321,2430.6,2430.1,0.7666]
[1728254238479,4.12356,2430.6,2430.1,0.7666]
[1728254240982,3.15982242,2430.6,2430.1,0.7666]
[1728254241307,3.29159,2430.5,2430.1,0.7666]
[1728254241704,0.0842357,2430.4,2430.1,0.7666]
[1728254243020,3.3759457,2430.4,2430.1,0.7666]
[1728254244011,0.0842357,2430.4,2430.1,0.7666]
[1728254244221,0.87917677,2430.4,2430.1,0.7666]
[1728254250320,0.0842357,2430.4,2430.1,0.7666]
[1728254253262,3.3759057,2430.4,2430.1,0.7666]
[1728254254056,0.0842357,2430.4,2430.1,0.7666]
[1728254255865,0.0842357,2430.4,2430.2,1.66853351]
[1728254256170,7.45,2431.2,2430.5,3.29146]
[1728254256171,4.09205,2431.1,2430.5,3.29146]
[1728254256319,4.09205,2431.1,2430.6,2.37453742]
[1728254256320,7.38283,2431.1,2430.6,2.37453742]
[1728254256743,0.07926967,2431.0,2430.6,0.7883]
[1728254257566,3.37011967,2431.0,2430.6,0.7883]
[1728254258340,0.07926967,2431.0,2430.6,0.7883]
[1728254258553,3.37009967,2431.0,2430.6,0.7883]
[1728254265470,4.151949,2431.0,2430.6,0.7883]
[1728254269276,0.07926967,2431.0,2430.6,0.7883]
[1728254270176,0.07926967,2431.0,2430.8,4.87723742]
[1728254270383,0.07926967,2431.0,2430.9,0.7695]
[1728254270584,3.29031,2431.4,2430.9,0.7695]
[1728254270878,0.07678192,2431.0,2430.9,0.7695]
[1728254271082,6.58096,2431.3,2430.9,0.7695]
[1728254271236,3.36753052,2431.3,2430.9,0.7695]
[1728254271435,0.0767945,2431.0,2430.9,0.7695]
[1728254271683,3.29043,2431.3,2430.9,0.7695]
[1728254271846,0.07669242,2431.0,2430.9,0.7695]
[1728254272266,3.2903,2431.4,2430.9,1.3424145]
[1728254272468,0.07671794,2431.0,2430.9,1.3424145]
[1728254272769,0.07675857,2431.0,2430.9,1.3424145]
[1728254272962,3.29044,2431.3,2431.0,0.7762]
[1728254273753,6.58049,2431.5,2431.0,0.7762]
[1728254273953,3.2903,2431.4,2431.0,0.7762]
[1728254274281,3.2903,2431.4,2431.0,1.40706995]
[1728254275688,3.29022,2431.5,2431.1,0.8088]
[1728254275847,6.58049,2431.5,2431.1,0.8088]
[1728254276050,3.29022,2431.5,2431.1,0.8088]
[1728254276768,3.29029,2431.4,2431.1,0.8088]
[1728254277538,3.29022,2431.5,2431.1,0.8088]
[1728254277743,6.58045,2431.5,2431.1,0.8088]
[1728254278257,3.2903,2431.4,2431.1,0.8088]
[1728254280382,3.29042,2431.3,2431.1,0.8088]
[1728254284198,3.29042,2431.3,2430.9,0.7762]
[1728254284877,3.29022,2431.5,2430.9,4.14940567]
[1728254285071,6.58047,2431.5,2430.9,5.05208298]
[1728254285265,3.29029,2431.4,2430.9,5.05208298]
[1728254285601,3.29029,2431.4,2431.0,0.7762]
[1728254286797,0.07704312,2431.3,2431.0,0.7762]
[1728254287099,0.07704312,2431.3,2430.4,3.2916]
[1728254287100,4.06113,2431.3,2430.6,4.05926]
[1728254287307,3.3675237,2431.2,2430.7,0.735068]
[1728254287461,3.29071,2431.1,2430.7,0.735068]
[1728254287860,0.07680232,2431.0,2430.7,2.32130542]
[1728254288673,0.07680232,2431.0,2430.8,0.768]
[1728254289004,3.29058,2431.2,2430.8,0.768]
[1728254289199,0.07693279,2431.1,2430.8,0.768]
[1728254291520,0.07693279,2431.1,2430.8,1.49655295]
[1728254291919,3.29043,2431.3,2430.8,1.41427986]
[1728254292130,0.07682784,2431.0,2430.8,1.41427986]
[1728254292633,0.0766208,2430.9,2430.8,4.70535986]
[1728254292790,0.0766208,2430.9,2430.8,4.78762915]
[1728254292986,4.06092,2431.5,2430.9,4.09116]
[1728254293207,4.06092,2431.5,2430.9,5.21663505]
[1728254293865,3.29029,2431.4,2430.9,5.21663505]
[1728254294834,3.29044,2431.3,2430.9,1.92577505]
[1728254295141,3.29044,2431.3,2430.9,0.8003]
[1728254295918,4.06088,2431.5,2430.9,0.8003]
[1728254296106,3.29032,2431.4,2430.9,0.8003]
[1728254297639,3.0,2431.7,2431.2,0.7558]
[1728254297640,3.0,2431.6,2431.2,0.7558]
[1728254297847,7.57400553,2431.6,2431.2,0.7558]
[1728254298141,6.29009,2431.6,2431.2,0.7558]
[1728254299444,3.29016,2431.5,2431.2,0.7558]
[1728254300025,3.0,2431.6,2431.2,0.7558]
[1728254300224,3.29056,2431.2,2430.8,0.776]
[1728254300611,3.2907,2431.1,2430.8,0.776]
[1728254301006,3.29056,2431.2,2430.8,0.776]
[1728254301729,0.07520282,2431.1,2430.8,0.776]
[1728254302801,0.07520282,2431.1,2430.9,1.58623742]
[1728254303030,6.29005,2431.6,2431.0,0.83816688]
[1728254303221,6.29005,2431.6,2430.9,1.58623742]
[1728254303222,6.29005,2431.6,2431.2,0.7559]
[1728254303551,9.58019,2431.6,2431.2,0.7559]
[1728254304205,9.58014,2431.6,2431.2,0.7559]
[1728254304457,6.29005,2431.6,2431.2,0.7559]
[1728254304741,6.24005,2431.6,2431.2,0.7559]
[1728254305151,9.53017,2431.6,2431.2,0.7559]
[1728254305441,6.24005,2431.6,2431.2,0.7559]
[1728254305650,3.29017,2431.5,2431.2,0.7559]
[1728254305833,3.29005,2431.6,2431.2,0.7559]
[1728254306012,3.29005,2431.6,2431.2,1.160571]
[1728254306416,3.29005,2431.6,2431.3,0.7559]
[1728254308547,6.58015,2431.6,2431.3,0.7559]
[1728254308715,3.29005,2431.6,2431.3,0.7559]
[1728254316769,0.07435732,2431.5,2431.3,0.7559]
[1728254319275,3.2899,2431.7,2431.3,1.35964884]
[1728254319468,0.07435886,2431.4,2431.3,0.7559]
[1728254319669,3.2899,2431.7,2431.3,0.7559]
[1728254320223,0.07265549,2431.6,2431.3,0.7559]
[1728254320410,3.29002,2431.6,2431.3,0.7559]
[1728254320579,0.07257609,2431.5,2431.3,0.7559]
[1728254326790,3.28988,2431.7,2431.3,0.7559]
[1728254327130,0.07287702,2431.6,2431.3,0.7559]
[1728254337934,6.57966,2431.8,2431.3,0.7559]
[1728254337935,6.57963,2431.8,2431.3,0.7559]
[1728254338136,0.07257448,2431.5,2431.3,0.7559]
[1728254338295,6.57963,2431.8,2431.3,1.32739332]
[1728254338609,6.57963,2431.8,2431.3,0.7559]
[1728254338808,0.07281044,2431.7,2431.3,0.7559]
[1728254339066,6.57963,2431.8,2431.3,0.7559]
[1728254339238,0.07273105,2431.6,2431.3,0.7559]
[1728254339573,6.57963,2431.8,2431.3,0.7559]
[1728254339737,0.07262614,2431.5,2431.3,0.7559]
[1728254339933,6.57963,2431.8,2431.3,1.31916774]
[1728254340128,0.07254799,2431.4,2431.3,0.7559]
[1728254340363,3.28981,2431.8,2431.3,4.04629]
[1728254340572,0.07254799,2431.4,2431.3,4.04629]
[1728254340732,3.28981,2431.8,2431.3,0.7559]
[1728254341065,6.57963,2431.8,2431.3,0.7559]
[1728254341279,0.07286272,2431.7,2431.3,0.7559]
[1728254341428,3.28981,2431.8,2431.3,6.20396475]
[1728254341740,0.07265576,2431.6,2431.5,0.8193]
[1728254342073,0.07266143,2431.6,2431.5,0.8193]
[1728254342240,0.1191395,2431.9,2431.5,0.8193]
[1728254342449,0.07268694,2431.6,2431.5,0.8193]
[1728254342770,0.1191395,2431.9,2431.5,1.44602847]
[1728254342956,0.07273797,2431.6,2431.5,0.8193]
[1728254343160,0.1191395,2431.9,2431.5,0.8193]
[1728254343332,0.07273797,2431.6,2431.5,0.8193]
[1728254343673,0.07276789,2431.6,2431.5,0.8193]
[1728254343872,0.07276789,2431.6,2431.2,0.7931]
[1728254344032,0.07276789,2431.6,2431.3,0.23793374]
[1728254347374,3.36278789,2431.6,2431.3,0.23793374]
[1728254347582,3.36278789,2431.6,2431.2,0.7931]
[1728254348563,3.36278789,2431.6,2431.0,0.8085]
[1728254348759,3.29022,2431.5,2431.0,0.8085]
[1728254348958,0.07074466,2431.4,2431.0,0.8085]
[1728254350162,4.12160466,2431.4,2431.0,0.8085]
[1728254350365,3.29052,2431.3,2430.8,0.8295]
[1728254350584,0.07041721,2431.2,2430.8,0.8295]
[1728254350861,3.29052,2431.3,2430.8,0.8295]
[1728254351061,0.07033772,2431.1,2430.8,0.8295]
[1728254351302,3.29055,2431.2,2430.8,0.8295]
[1728254351592,7.34127,2431.4,2430.8,4.12059]
[1728254351770,0.07058682,2431.1,2430.8,5.70682742]
[1728254351966,7.34127,2431.4,2430.8,7.34563916]
[1728254352296,0.07082238,2431.3,2430.8,7.34563916]
[1728254354774,3.36125238,2431.3,2430.8,7.34563916]
[1728254358531,3.29056,2431.2,2430.8,4.05454916]
[1728254358707,3.29056,2431.2,2430.8,2.41573742]
[1728254358895,0.07046435,2431.1,2430.8,2.41573742]
[1728254362641,0.07046435,2431.1,2430.2,3.29188]
[1728254362642,0.07046435,2431.1,2431.0,5.65235742]
[1728254362922,3.29002,2431.6,2431.0,5.65235742]
[1728254363125,0.07041014,2431.1,2431.0,5.65235742]
[1728254363326,0.07041014,2431.1,2431.0,6.54668716]
[1728254363623,3.29002,2431.6,2431.1,4.09907]
[1728254365726,11.6717595,2431.9,2431.4,0.7719]
[1728254365926,0.1191395,2431.9,2431.4,1.58623742]
[1728254366133,0.1191395,2431.9,2431.6,0.7719]
[1728254370555,3.4087595,2431.9,2431.6,0.7719]
[1728254370922,3.4087595,2431.9,2431.4,2.39893742]
[1728254371164,3.4087595,2431.9,2431.4,2.96786316]
[1728254374239,0.1191395,2431.9,2431.4,6.25811316]
[1728254374923,0.1191395,2431.9,2431.5,4.18438477]
[1728254375318,0.1191395,2431.9,2431.6,0.812]
[1728254375556,0.1191395,2431.9,2431.6,0.63395479]
[1728254375758,0.1191395,2431.9,2431.7,0.7791]
[1728254376225,0.1191395,2431.9,2431.8,2.36533742]
[1728254376859,0.18704496,2431.9,2431.8,2.36533742]
[1728254377837,0.18704496,2431.9,2431.8,2.44757214]
[1728254378033,0.18704496,2431.9,2431.8,3.08470483]
[1728254383863,0.18704496,2431.9,2431.8,3.00247011]
[1728254395710,0.18704496,2431.9,2431.8,0.63713269]
[1728254395903,0.18704496,2431.9,2431.6,2.38883742]
[1728254397024,0.18704496,2431.9,2431.6,5.67884742]
[1728254401122,0.18704496,2431.9,2431.7,3.28986]
[1728254401443,0.18704496,2431.9,2431.7,6.57972]
[1728254401646,0.18704496,2431.9,2431.7,3.28986]
[1728254401815,0.18704496,2431.9,2431.8,0.56786974]
[1728254402017,0.94594496,2431.9,2431.5,3.29006]
[1728254402481,0.94594496,2431.9,2431.5,8.16634742]
[1728254402610,0.94594496,2431.9,2431.5,4.87628742]
[1728254404064,3.28974,2431.8,2431.4,0.791]
[1728254404690,0.06617001,2431.7,2431.4,1.35775974]
[1728254405176,3.28974,2431.8,2431.4,1.35775974]
[1728254405325,0.06611614,2431.6,2431.4,1.35775974]
[1728254405522,3.28974,2431.8,2431.4,1.35775974]
[1728254405965,0.06624654,2431.7,2431.4,1.35775974]
[1728254406126,0.06624654,2431.7,2431.3,3.29036]
[1728254406332,3.28974,2431.8,2431.3,3.29036]
[1728254406638,0.06614165,2431.6,2431.3,3.29036]
[1728254406966,3.28974,2431.8,2431.4,1.58623742]
[1728254407130,0.06596021,2431.5,2431.4,1.58623742]
[1728254407462,0.06596021,2431.5,2431.4,2.48584116]
[1728254407631,3.28974,2431.8,2431.4,2.48584116]
[1728254407829,0.06619552,2431.7,2431.4,1.58623742]
[1728254408033,3.28974,2431.8,2431.4,1.58623742]
[1728254408370,0.06622103,2431.7,2431.4,4.87649742]
[1728254408723,0.8780395,2431.9,2431.4,4.87649742]
[1728254408923,0.06614165,2431.6,2431.4,4.87649742]
[1728254409135,4.1676595,2431.9,2431.4,5.77609116]
[1728254409341,0.06603675,2431.5,2431.4,4.87649742]
[1728254409542,0.8780395,2431.9,2431.4,4.87649742]
[1728254409864,4.1676495,2431.9,2431.4,4.87649742]
[1728254410051,0.0662749,2431.8,2431.4,4.87649742]
[1728254410660,0.0662749,2431.8,2431.4,1.58623742]
[1728254412671,0.0662749,2431.8,2431.6,0.8096]
[1728254413028,0.0662749,2431.8,2431.5,3.29007]
[1728254413425,0.0662749,2431.8,2431.6,1.58623742]
[1728254413631,0.0662749,2431.8,2431.7,4.08667]
[1728254419336,0.0662749,2431.8,2431.7,4.16890736]
[1728254419546,0.0662749,2431.8,2431.7,5.07342184]
[1728254419972,0.0662749,2431.8,2431.7,4.99118448]
[1728254421815,0.0662749,2431.8,2431.7,5.07341959]
[1728254424839,0.1191395,2431.9,2431.8,3.28974]
[1728254425040,0.1191395,2431.9,2431.8,6.93101361]
[1728254426300,0.1191395,2431.9,2431.8,10.01323273]
[1728254426589,0.1191395,2431.9,2431.8,9.93101361]
[1728254428187,0.1191395,2431.9,2431.8,8.34477619]
[1728254428397,0.1191395,2431.9,2431.8,9.93101361]
[1728254432058,0.22353969,2431.9,2431.8,9.93101361]
[1728254433309,0.1191395,2431.9,2431.8,9.93101361]
[1728254436357,0.1191395,2431.9,2431.8,5.34477619]
[1728254436559,0.1191395,2431.9,2431.7,3.28979]
[1728254436870,0.22279662,2431.9,2431.8,4.87597742]
[1728254437181,0.22279662,2431.9,2431.8,5.74361187]
[1728254437690,0.22286868,2431.9,2431.8,5.74361187]
[1728254438093,0.22286868,2431.9,2431.8,5.66137742]
[1728254438309,0.22286868,2431.9,2431.8,6.55649416]
[1728254440158,0.22286868,2431.9,2431.8,4.97025674]
[1728254440365,0.22286868,2431.9,2431.8,4.87597742]
[1728254440566,0.22286868,2431.9,2431.8,4.95820689]
[1728254440771,0.1191395,2431.9,2431.8,4.95820689]
[1728254441010,0.1191395,2431.9,2431.8,5.75410689]
[1728254442160,0.22109123,2431.9,2431.8,5.75410689]
[1728254442402,0.22109123,2431.9,2431.8,6.65849658]
[1728254442606,0.22109123,2431.9,2431.8,6.57626711]
[1728254444367,0.22109123,2431.9,2431.8,6.65849155]
[1728254448786,0.22109123,2431.9,2431.8,6.57626711]
[1728254453626,0.1191395,2431.9,2431.8,6.57626711]
[1728254457136,0.21897666,2431.9,2431.8,6.57626711]
[1728254457335,0.1191395,2431.9,2431.8,6.57626711]
[1728254458799,0.21895157,2431.9,2431.8,6.57626711]
[1728254459541,0.1191395,2431.9,2431.8,6.57626711]
[1728254460839,0.21902875,2431.9,2431.8,6.57626711]
[1728254461456,0.1191395,2431.9,2431.8,6.57626711]
[1728254463656,0.1191395,2431.9,2431.8,6.65849203]
[1728254466061,0.1191395,2431.9,2431.8,6.57626711]
[1728254470618,0.21219728,2431.9,2431.8,6.57626711]
[1728254471958,0.21224745,2431.9,2431.8,6.57626711]
[1728254472119,0.1191395,2431.9,2431.8,6.57626711]
[1728254473033,0.1191395,2431.9,2431.8,5.78036711]
[1728254473241,0.21229762,2431.9,2431.8,5.78036711]
[1728254478692,0.1191395,2431.9,2431.8,5.78036711]
[1728254480190,0.21230902,2431.9,2431.8,5.78036711]
[1728254487611,0.1191395,2431.9,2431.8,5.78036711]
[1728254487792,0.1191395,2431.9,2431.8,6.58746711]
[1728254487993,0.1191395,2431.9,2431.8,10.14232482]
[1728254488203,0.1191395,2431.9,2431.8,9.58746711]
[1728254488512,0.1191395,2431.9,2431.8,10.13746711]
[1728254513930,0.9353395,2431.9,2431.8,7.19412969]
[1728254514237,0.9353395,2431.9,2431.8,7.87597742]
[1728254514442,1.02565135,2431.9,2431.8,7.87597742]
[1728254515594,0.20945135,2431.9,2431.8,7.87597742]
[1728254515819,0.1191395,2431.9,2431.8,7.95820457]
[1728254516614,0.1191395,2431.9,2431.8,9.08300403]
[1728254516822,0.1191395,2431.9,2431.8,9.00077688]
[1728254517231,0.1191395,2431.9,2431.8,6.28974]
[1728254517429,0.20932595,2431.9,2431.8,4.87597742]
[1728254517835,0.1191395,2431.9,2431.8,4.87597742]
[1728254518050,0.20934146,2431.9,2431.8,4.87597742]
[1728254518418,0.1191395,2431.9,2431.8,4.87597742]
[1728254521722,0.1191395,2431.9,2431.8,4.95820545]
[1728254522462,0.1191395,2431.9,2431.8,4.87597742]
[1728254528459,0.1191395,2431.9,2431.8,5.8545126]
[1728254529744,0.1191395,2431.9,2431.8,5.77228416]
[1728254534507,0.1191395,2431.9,2431.8,5.85450908]
[1728254534664,0.1191395,2431.9,2431.8,8.85450908]
[1728254534843,0.1191395,2431.9,2431.8,8.77228416]
[1728254535835,0.1191395,2431.9,2431.8,9.32228416]
[1728254537748,0.1191395,2431.9,2431.8,10.10158416]
[1728254553800,0.1191395,2431.9,2431.8,8.77228416]
[1728254554091,0.1191395,2431.9,2431.8,7.87597742]
[1728254561215,0.1191395,2431.9,2431.8,8.64237742]
[1728254572038,0.1191395,2431.9,2431.8,7.87597742]
[1728254572676,0.8941395,2431.9,2431.8,6.28974]
[1728254572882,0.97879943,2431.9,2431.8,3.28974]
[1728254573995,0.97879943,2431.9,2431.8,4.87597742]
[1728254579525,0.20379943,2431.9,2431.8,5.69255416]
[1728254580082,0.20379943,2431.9,2431.8,5.77478341]
[1728254580915,0.20379943,2431.9,2431.8,5.69255416]
[1728254582328,0.20379943,2431.9,2431.8,5.77478333]
[1728254584304,0.20379943,2431.9,2431.8,5.69255416]
[1728254584504,0.20379943,2431.9,2431.8,5.77478319]
[1728254587345,0.20379943,2431.9,2431.8,4.95820645]
[1728254588058,0.20379943,2431.9,2431.8,4.87597742]
[1728254588212,0.20379943,2431.9,2431.8,4.95820597]
[1728254588615,0.20379943,2431.9,2431.8,5.73440597]
[1728254589455,0.1191395,2431.9,2431.8,6.28440597]
[1728254589750,0.1191395,2431.9,2431.8,7.24182557]
[1728254590122,0.1191395,2431.9,2431.8,7.15959702]
[1728254590430,0.1191395,2431.9,2431.8,10.24181334]
[1728254590635,0.1191395,2431.9,2431.8,10.15959702]
[1728254609265,0.1191395,2431.9,2431.8,12.29549846]
[1728254609446,0.1191395,2431.9,2431.8,10.15959702]
[1728254613142,0.1191395,2431.9,2431.8,8.83339702]
[1728254613373,0.1191395,2431.9,2431.8,7.87597742]
[1728254614561,0.1191395,2431.9,2431.8,8.42597742]
[1728254627073,0.1191395,2431.9,2431.8,9.18617742]
[1728254631517,0.1191395,2431.9,2431.8,11.3214927]
[1728254631719,0.1191395,2431.9,2431.8,9.18617742]
[1728254632035,0.1191395,2431.9,2431.8,10.64730569]
[1728254632728,0.1191395,2431.9,2431.8,12.78262097]
[1728254634518,0.1191395,2431.9,2431.8,10.64730569]
[1728254643212,0.1191395,2431.9,2431.8,9.88710569]
[1728254647843,0.1191395,2431.9,2431.8,8.30086827]
[1728254648020,0.1191395,2431.9,2431.8,10.56361297]
[1728254649845,0.1191395,2431.9,2431.8,8.42597742]
[1728254650009,0.1191395,2431.9,2431.8,10.5637595]
[1728254660025,0.1191395,2431.9,2431.8,10.56377399]
[1728254665023,0.1191395,2431.9,2431.8,10.56383214]
[1728254665361,0.1191395,2431.9,2431.8,12.28238692]
[1728254675051,0.1191395,2431.9,2431.8,12.28285177]
[1728254678229,0.1191395,2431.9,2431.8,7.87597742]
[1728254680226,0.1191395,2431.9,2431.8,7.95820521]
[1728254681052,0.1191395,2431.9,2431.8,7.87597742]
[1728254681261,0.1191395,2431.9,2431.8,7.95820519]
[1728254681635,0.1191395,2431.9,2431.8,7.87597742]
[1728254687783,0.1191395,2431.9,2431.8,9.28862351]
[1728254687976,0.1191395,2431.9,2431.8,9.20639564]
[1728254695189,0.1191395,2431.9,2431.8,6.28974]
[1728254695493,0.1191395,2431.9,2431.8,7.87597742]
[1728254705403,0.1191395,2431.9,2431.8,7.95820808]
[1728254706505,0.1191395,2431.9,2431.8,7.87597742]
[1728254709008,0.1191395,2431.9,2431.8,7.9582081]
[1728254709206,0.1191395,2431.9,2431.8,9.21461508]
[1728254718925,0.1191395,2431.9,2431.8,9.76461508]
[1728254725614,0.1191395,2431.9,2431.8,11.90636586]
[1728254726712,0.1191395,2431.9,2431.8,8.98149078]
[1728254726911,0.1191395,2431.9,2431.8,3.83974]
[1728254727214,0.8749395,2431.9,2431.7,3.28979]
[1728254727398,0.07334993,2431.8,2431.7,4.87602742]
[1728254727597,0.7558,2431.8,2431.7,4.87602742]
[1728254727908,0.82914993,2431.8,2431.7,4.87602742]
[1728254731350,0.82914993,2431.8,2431.6,3.29]
[1728254731647,0.7558,2431.8,2431.6,3.29]
[1728254731820,0.0728473,2431.7,2431.6,3.29]
[1728254732158,0.8015,2431.7,2431.6,3.29]
[1728254732303,0.87437239,2431.7,2431.6,3.29]
[1728254735024,0.8015,2431.7,2431.6,3.29]
[1728254735329,0.1191395,2431.9,2431.7,3.28975]
[1728254735530,0.1191395,2431.9,2431.8,4.9582119]
[1728254737138,0.18722564,2431.9,2431.8,4.9582119]
[1728254739042,0.18722564,2431.9,2431.8,5.5082119]
[1728254739242,0.1191395,2431.9,2431.8,5.5082119]
[1728254739445,0.1191395,2431.9,2431.8,6.55513276]
[1728254743357,0.18744831,2431.9,2431.8,6.55513276]
[1728254743663,0.1191395,2431.9,2431.8,6.55513276]
[1728254752931,0.1191395,2431.9,2431.8,6.47289828]
[1728254753131,0.18744625,2431.9,2431.8,6.47289828]
[1728254754247,0.1191395,2431.9,2431.8,6.47289828]
[1728254756847,0.1191395,2431.9,2431.8,6.55512901]
[1728254757046,0.1191395,2431.9,2431.8,6.47289828]
[1728254757274,0.1191395,2431.9,2431.8,6.55512905]
[1728254757579,0.1191395,2431.9,2431.8,6.47289828]
[1728254758045,0.1191395,2431.9,2431.8,6.55512908]
[1728254758451,0.1191395,2431.9,2431.8,6.47289828]
[1728254760359,0.1191395,2431.9,2431.8,6.55512912]
[1728254760681,0.1191395,2431.9,2431.8,6.47289828]
[1728254760986,0.1191395,2431.9,2431.8,6.55512909]
[1728254761855,0.1191395,2431.9,2431.8,6.47289828]
[1728254762052,0.1191395,2431.9,2431.8,6.55512913]
[1728254762251,0.1191395,2431.9,2431.8,10.34082288]
[1728254762453,0.1191395,2431.9,2431.8,10.25859828]
[1728254770981,0.1191395,2431.9,2431.8,8.42597742]
[1728254799843,0.1191395,2431.9,2431.8,9.79048037]
[1728254800059,0.1191395,2431.9,2431.8,11.37671779]
[1728254802059,0.8111,2432.5,2432.4,3.28893]
[1728254802364,2.15944753,2433.2,2432.7,6.57692]
[1728254802565,0.2591337,2433.1,2432.8,1.58623742]
[1728254802865,0.7817,2433.0,2432.8,1.58623742]
[1728254803023,0.7817,2433.0,2432.9,3.28825]
[1728254803354,0.7817,2433.0,2432.8,4.87461742]
[1728254803938,0.7817,2433.0,2432.8,8.16299742]
[1728254804165,0.7817,2433.0,2432.8,4.87461742]
[1728254804460,0.7817,2433.0,2432.9,3.28825]
[1728254808067,0.7817,2433.0,2432.8,4.87461742]
[1728254808612,0.7817,2433.0,2432.8,8.16292742]
[1728254809320,0.7817,2433.0,2432.9,3.28825]
[1728254811791,0.84432436,2433.0,2432.9,3.28825]
[1728254817924,0.79432436,2433.0,2432.9,3.28825]
[1728254819454,0.79432436,2433.0,2432.8,3.28831]
[1728254819750,0.79432436,2433.0,2432.6,4.87480742]
[1728254820306,0.40823144,2432.9,2432.6,4.87480742]
[1728254820515,0.06254356,2432.8,2432.2,3.28918]
[1728254820754,3.28878,2432.6,2432.0,4.87564742]
[1728254820954,0.81287891,2432.5,2432.0,4.87564742]
[1728254821249,0.81287891,2432.5,2432.0,3.28941]
[1728254821409,0.96023254,2432.5,2432.0,3.28941]
[1728254821611,0.7503,2432.4,2432.0,3.28941]
[1728254822040,0.06240899,2432.3,2432.0,4.87564742]
[1728254822865,0.7503,2432.2,2432.0,4.87564742]
[1728254823215,0.06222786,2432.1,2432.0,4.87564742]
[1728254830925,0.7503,2432.2,2432.0,4.87564742]
[1728254831124,0.0621156,2432.1,2432.0,4.87564742]
[1728254833057,0.7503,2432.2,2432.0,4.87564742]
[1728254833353,0.06219085,2432.1,2432.0,4.87564742]
[1728254833863,0.06219085,2432.1,2432.0,1.58623742]
[1728254836888,0.8128,2432.4,2432.0,1.58623742]
[1728254837043,0.06217554,2432.1,2432.0,1.58623742]
[1728254837238,0.8128,2432.4,2432.0,1.58623742]
[1728254837660,0.06240683,2432.3,2432.0,1.58623742]
[1728254837870,0.06240683,2432.3,2432.0,1.83621465]
[1728254838249,0.06240683,2432.3,2432.2,1.58623742]
[1728254850556,0.06240683,2432.3,2432.0,1.58623742]
[1728254856632,0.06240683,2432.3,2432.0,4.87569742]
[1728254859216,0.06240683,2432.3,2432.1,3.28933]
[1728254859393,0.06240683,2432.3,2432.1,6.57866]
[1728254859931,0.06240683,2432.3,2432.2,1.58623742]
[1728254862209,0.06240683,2432.3,2432.2,4.87543742]
[1728254862798,0.7647,2432.6,2432.2,4.87543742]
[1728254862994,0.05819786,2432.5,2432.2,4.87543742]
[1728254863199,0.05819786,2432.5,2432.2,1.58623742]
[1728254863400,0.05819786,2432.5,2432.2,4.87541742]
[1728254863640,0.05819786,2432.5,2432.2,5.63401742]
[1728254864955,0.05819786,2432.5,2432.4,4.87516742]
[1728254865107,0.05819786,2432.5,2432.4,5.7756661]
[1728254865309,0.7752,2432.7,2432.4,5.7756661]
[1728254865645,0.7752,2432.7,2432.4,4.87516742]
[1728254865846,0.05630425,2432.6,2432.4,4.87516742]
[1728254867251,0.05630425,2432.6,2432.5,3.28879]
[1728254868306,0.05630425,2432.6,2432.5,4.09129]
[1728254868736,0.7575,2432.9,2432.5,4.09129]
[1728254869073,0.05657183,2432.8,2432.6,1.58623742]
[1728254869567,2.15891749,2433.3,2432.7,1.3517]
[1728254869710,0.64393198,2433.5,2433.4,3.28758]
[1728254870257,0.8078,2433.7,2433.4,4.87381742]
[1728254870845,0.7729,2433.9,2433.5,3.2874]
[1728254871155,0.7729,2433.9,2433.4,1.58623742]